[Event "*** Titled Tuesday Blitz"]
[Site "Chess.com"]
[Date "2021.03.30"]
[Round "8"]
[White "Borsuk_Konstantin"]
[Black "adricalderon8"]
[Result "1-0"]
[WhiteElo "2666"]
[BlackElo "2521"]
[TimeControl "180+1"]
[EndTime "11:30:47 PDT"]
[Termination "Borsuk_Konstantin won by checkmate"]

1. d4 {[%clk 0:03:00.9]} 1... Nf6 {[%clk 0:02:59.7]} 2. c4 {[%clk 0:03:00.6]}
2... b6 {[%clk 0:02:59.9]} 3. Nc3 {[%clk 0:03:00.3]} 3... Bb7 {[%clk 0:03:00.4]}
4. f3 {[%clk 0:02:59.5]} 4... d5 {[%clk 0:03:00.5]} 5. cxd5 {[%clk 0:02:59.5]}
5... Nxd5 {[%clk 0:03:01.4]} 6. e4 {[%clk 0:02:59.7]} 6... Nxc3 {[%clk
0:03:01.9]} 7. bxc3 {[%clk 0:03:00]} 7... e5 {[%clk 0:03:01.9]} 8. Be3 {[%clk
0:02:56.8]} 8... exd4 {[%clk 0:03:02.1]} 9. cxd4 {[%clk 0:02:56.5]} 9... Bb4+
{[%clk 0:03:01.7]} 10. Kf2 {[%clk 0:02:56.4]} 10... O-O {[%clk 0:03:01.8]} 11.
Nh3 {[%clk 0:02:52.3]} 11... c5 {[%clk 0:02:59.1]} 12. dxc5 {[%clk 0:02:48.9]}
12... Nd7 {[%clk 0:02:58.9]} 13. cxb6 {[%clk 0:02:46]} 13... Qf6 {[%clk
0:02:53.2]} 14. bxa7 {[%clk 0:02:34.9]} 14... Ne5 {[%clk 0:02:47.6]} 15. Nf4
{[%clk 0:02:26]} 15... Bc5 {[%clk 0:01:40.3]} 16. Bxc5 {[%clk 0:02:16.4]} 16...
Qxf4 {[%clk 0:01:40.3]} 17. Qc1 {[%clk 0:02:08.2]} 17... Qh4+ {[%clk 0:01:21.5]}
18. g3 {[%clk 0:01:57.5]} 18... Qf6 {[%clk 0:01:18.6]} 19. Qf4 {[%clk
0:01:51.2]} 19... Ng4+ {[%clk 0:00:59.1]} 20. fxg4 {[%clk 0:01:06]} 20... Qxa1
{[%clk 0:00:58.5]} 21. Bxf8 {[%clk 0:01:05.8]} 21... Qxa2+ {[%clk 0:00:55.3]}
22. Be2 {[%clk 0:01:03.9]} 22... Qxa7+ {[%clk 0:00:50.7]} 23. Qe3 {[%clk
0:00:59.8]} 23... Kxf8 {[%clk 0:00:39.3]} 24. Qxa7 {[%clk 0:00:58.6]} 24... Rxa7
{[%clk 0:00:40.2]} 25. Ke3 {[%clk 0:00:56.6]} 25... Ra3+ {[%clk 0:00:39.8]} 26.
Bd3 {[%clk 0:00:55]} 26... Ba6 {[%clk 0:00:39.2]} 27. Rd1 {[%clk 0:00:54.7]}
27... Ke7 {[%clk 0:00:39.1]} 28. g5 {[%clk 0:00:53.6]} 28... Ke6 {[%clk
0:00:37.2]} 29. Kd4 {[%clk 0:00:47.6]} 29... Ra4+ {[%clk 0:00:35]} 30. Ke3
{[%clk 0:00:47.5]} 30... Ra3 {[%clk 0:00:28.6]} 31. Ke2 {[%clk 0:00:44]} 31...
Bxd3+ {[%clk 0:00:18]} 32. Rxd3 {[%clk 0:00:43.6]} 32... Ra5 {[%clk 0:00:17.9]}
33. h4 {[%clk 0:00:42.7]} 33... Ra2+ {[%clk 0:00:17.1]} 34. Ke3 {[%clk
0:00:42.3]} 34... Rg2 {[%clk 0:00:16.7]} 35. Kf3 {[%clk 0:00:42]} 35... Rg1
{[%clk 0:00:16.7]} 36. Rb3 {[%clk 0:00:40.3]} 36... Rf1+ {[%clk 0:00:17.1]} 37.
Ke2 {[%clk 0:00:39.7]} 37... Rg1 {[%clk 0:00:13.1]} 38. Kf2 {[%clk 0:00:39.5]}
38... Ra1 {[%clk 0:00:12.9]} 39. Rb6+ {[%clk 0:00:34.6]} 39... Ke7 {[%clk
0:00:07.9]} 40. Kf3 {[%clk 0:00:29.6]} 40... Rf1+ {[%clk 0:00:07.3]} 41. Kg4
{[%clk 0:00:29.1]} 41... Rf2 {[%clk 0:00:07.8]} 42. h5 {[%clk 0:00:27.8]} 42...
Rf1 {[%clk 0:00:06.9]} 43. h6 {[%clk 0:00:27.1]} 43... g6 {[%clk 0:00:05.5]} 44.
Rb8 {[%clk 0:00:25.2]} 44... Re1 {[%clk 0:00:05.8]} 45. Kf3 {[%clk 0:00:24.8]}
45... Rf1+ {[%clk 0:00:05.5]} 46. Ke2 {[%clk 0:00:24.8]} 46... Rg1 {[%clk
0:00:05.8]} 47. Kf2 {[%clk 0:00:24.3]} 47... Ra1 {[%clk 0:00:04]} 48. Kf3 {[%clk
0:00:20.7]} 48... Rf1+ {[%clk 0:00:03.5]} 49. Kg4 {[%clk 0:00:20.7]} 49... Re1
{[%clk 0:00:03.5]} 50. Rh8 {[%clk 0:00:20.7]} 50... Rxe4+ {[%clk 0:00:03.7]} 51.
Kh3 {[%clk 0:00:21.3]} 51... Re5 {[%clk 0:00:03.8]} 52. Kh4 {[%clk 0:00:20.3]}
52... Re4+ {[%clk 0:00:04.2]} 53. g4 {[%clk 0:00:20.1]} 53... Re1 {[%clk
0:00:04.2]} 54. Rxh7 {[%clk 0:00:20.4]} 54... Rh1+ {[%clk 0:00:04.5]} 55. Kg3
{[%clk 0:00:20.7]} 55... Rg1+ {[%clk 0:00:05]} 56. Kf3 {[%clk 0:00:20.1]} 56...
Rh1 {[%clk 0:00:05.3]} 57. Rh8 {[%clk 0:00:19.7]} 57... Ke6 {[%clk 0:00:05.2]}
58. Re8+ {[%clk 0:00:18.8]} 58... Kd7 {[%clk 0:00:05.6]} 59. Ra8 {[%clk
0:00:16.9]} 59... Ke6 {[%clk 0:00:05.6]} 60. Ra6+ {[%clk 0:00:15.4]} 60... Ke7
{[%clk 0:00:06.1]} 61. Kg2 {[%clk 0:00:13.4]} 61... Rh4 {[%clk 0:00:05.6]} 62.
Kg3 {[%clk 0:00:11.8]} 62... Rh1 {[%clk 0:00:05.9]} 63. Rb6 {[%clk 0:00:12.1]}
63... Ke8 {[%clk 0:00:05.3]} 64. Rb7 {[%clk 0:00:12.3]} 64... Kf8 {[%clk
0:00:05.4]} 65. Kf4 {[%clk 0:00:11.3]} 65... Rf1+ {[%clk 0:00:04.5]} 66. Ke3
{[%clk 0:00:11.7]} 66... Rh1 {[%clk 0:00:04.1]} 67. Rb2 {[%clk 0:00:10.4]} 67...
Kg8 {[%clk 0:00:04.1]} 68. Kf4 {[%clk 0:00:10.5]} 68... Rf1+ {[%clk 0:00:03.8]}
69. Kg3 {[%clk 0:00:10.2]} 69... Kf8 {[%clk 0:00:03.6]} 70. Rf2 {[%clk
0:00:09.9]} 70... Rh1 {[%clk 0:00:03.4]} 71. Kf4 {[%clk 0:00:08.9]} 71... Ke7
{[%clk 0:00:02.9]} 72. Re2+ {[%clk 0:00:08.7]} 72... Kd6 {[%clk 0:00:03.5]} 73.
Kg3 {[%clk 0:00:06.5]} 73... Kd7 {[%clk 0:00:03.4]} 74. Rh2 {[%clk 0:00:06.7]}
74... Rg1+ {[%clk 0:00:03.7]} 75. Kf2 {[%clk 0:00:06.5]} 75... Rxg4 {[%clk
0:00:03.9]} 76. h7 {[%clk 0:00:06.4]} 76... Rf4+ {[%clk 0:00:04.2]} 77. Ke3
{[%clk 0:00:06.7]} 77... Rf5 {[%clk 0:00:04]} 78. h8=Q {[%clk 0:00:06.5]} 78...
Rxg5 {[%clk 0:00:04]} 79. Rh4 {[%clk 0:00:06.9]} 79... Ke6 {[%clk 0:00:03.3]}
80. Re4+ {[%clk 0:00:07.1]} 80... Kf5 {[%clk 0:00:03.5]} 81. Qe5# {[%clk
0:00:06.9]} 1-0

[Event "*** Titled Tuesday Blitz"]
[Site "Chess.com"]
[Date "2021.03.30"]
[Round "8"]
[White "eldur16"]
[Black "Myshakov_Fedor"]
[Result "0-1"]
[WhiteElo "2561"]
[BlackElo "2410"]
[TimeControl "180+1"]
[EndTime "11:31:09 PDT"]
[Termination "Myshakov_Fedor won on time"]

1. Nf3 {[%clk 0:03:00.9]} 1... d5 {[%clk 0:02:57.4]} 2. g3 {[%clk 0:03:00.7]}
2... Nf6 {[%clk 0:02:55.6]} 3. Bg2 {[%clk 0:03:00.2]} 3... Bg4 {[%clk
0:02:54.4]} 4. O-O {[%clk 0:02:59.8]} 4... e6 {[%clk 0:02:54.5]} 5. b3 {[%clk
0:02:58.1]} 5... Be7 {[%clk 0:02:54.5]} 6. Bb2 {[%clk 0:02:57.9]} 6... O-O
{[%clk 0:02:54.6]} 7. d3 {[%clk 0:02:57.9]} 7... Nbd7 {[%clk 0:02:53.8]} 8. Nbd2
{[%clk 0:02:57.5]} 8... c5 {[%clk 0:02:53.2]} 9. h3 {[%clk 0:02:56.3]} 9... Bh5
{[%clk 0:02:53.1]} 10. e4 {[%clk 0:02:55]} 10... dxe4 {[%clk 0:02:53]} 11. dxe4
{[%clk 0:02:54.5]} 11... Qc7 {[%clk 0:02:52.5]} 12. Qe2 {[%clk 0:02:35.6]} 12...
Rfd8 {[%clk 0:02:51.3]} 13. Rfe1 {[%clk 0:02:34.6]} 13... Rac8 {[%clk
0:02:48.6]} 14. a3 {[%clk 0:02:23.6]} 14... b6 {[%clk 0:02:45.7]} 15. e5 {[%clk
0:02:22.7]} 15... Ne8 {[%clk 0:02:40]} 16. Nc4 {[%clk 0:02:21.4]} 16... b5
{[%clk 0:02:36.8]} 17. Ncd2 {[%clk 0:02:19.8]} 17... Nb6 {[%clk 0:02:37.3]} 18.
Qxb5 {[%clk 0:02:17.3]} 18... c4 {[%clk 0:02:34.6]} 19. Ne4 {[%clk 0:02:13.4]}
19... Rd5 {[%clk 0:02:20.8]} 20. Qa6 {[%clk 0:02:09]} 20... Qb8 {[%clk 0:02:15]}
21. Nd6 {[%clk 0:01:41]} 21... Bxd6 {[%clk 0:02:04.7]} 22. exd6 {[%clk
0:01:40.4]} 22... Nxd6 {[%clk 0:01:57.2]} 23. Be5 {[%clk 0:01:36.9]} 23... f6
{[%clk 0:01:26.6]} 24. Bxd6 {[%clk 0:01:34.7]} 24... Rxd6 {[%clk 0:01:26.2]} 25.
Qb5 {[%clk 0:01:26.1]} 25... Bf7 {[%clk 0:01:21.2]} 26. Qb4 {[%clk 0:01:21.6]}
26... cxb3 {[%clk 0:01:17.4]} 27. cxb3 {[%clk 0:01:20.5]} 27... Nd5 {[%clk
0:01:14]} 28. Qxb8 {[%clk 0:01:18.1]} 28... Rxb8 {[%clk 0:01:14.9]} 29. b4
{[%clk 0:01:18.2]} 29... Rbd8 {[%clk 0:01:08.9]} 30. Rac1 {[%clk 0:01:16.1]}
30... e5 {[%clk 0:01:07.9]} 31. Rc5 {[%clk 0:01:09.8]} 31... Nb6 {[%clk
0:01:05.4]} 32. Rc7 {[%clk 0:01:06.4]} 32... R6d7 {[%clk 0:01:04.2]} 33. Rec1
{[%clk 0:01:05]} 33... h5 {[%clk 0:01:00.5]} 34. g4 {[%clk 0:00:57.3]} 34...
hxg4 {[%clk 0:00:59.7]} 35. hxg4 {[%clk 0:00:56.8]} 35... Nd5 {[%clk 0:00:58.6]}
36. Rxd7 {[%clk 0:00:55.2]} 36... Rxd7 {[%clk 0:00:59]} 37. Rd1 {[%clk
0:00:52.2]} 37... Re7 {[%clk 0:00:56.5]} 38. Ng5 {[%clk 0:00:49.9]} 38... Nf4
{[%clk 0:00:40.2]} 39. Rd8+ {[%clk 0:00:46.9]} 39... Re8 {[%clk 0:00:38.2]} 40.
Nxf7 {[%clk 0:00:43]} 40... Kxf7 {[%clk 0:00:37.3]} 41. Rd2 {[%clk 0:00:41.6]}
41... Ke7 {[%clk 0:00:33.4]} 42. b5 {[%clk 0:00:38.1]} 42... Rc8 {[%clk
0:00:31.6]} 43. a4 {[%clk 0:00:35.5]} 43... Rc1+ {[%clk 0:00:30.2]} 44. Kh2
{[%clk 0:00:34.5]} 44... Ra1 {[%clk 0:00:30]} 45. Rc2 {[%clk 0:00:28.7]} 45...
Rxa4 {[%clk 0:00:28.2]} 46. Rc7+ {[%clk 0:00:28]} 46... Kf8 {[%clk 0:00:28.4]}
47. Bc6 {[%clk 0:00:26.8]} 47... Ra2 {[%clk 0:00:21.7]} 48. Kg3 {[%clk
0:00:25.7]} 48... Ra3+ {[%clk 0:00:20.9]} 49. Kh2 {[%clk 0:00:25.7]} 49... g5
{[%clk 0:00:18.5]} 50. Rb7 {[%clk 0:00:22.7]} 50... Ne6 {[%clk 0:00:15.8]} 51.
Bd5 {[%clk 0:00:19.5]} 51... Nf4 {[%clk 0:00:14.1]} 52. Bc6 {[%clk 0:00:18.9]}
52... Ra2 {[%clk 0:00:12.4]} 53. Kg1 {[%clk 0:00:18.1]} 53... Ne2+ {[%clk
0:00:11.9]} 54. Kf1 {[%clk 0:00:17.8]} 54... Nd4 {[%clk 0:00:11.9]} 55. Kg2
{[%clk 0:00:17]} 55... Ra3 {[%clk 0:00:10.4]} 56. Bd5 {[%clk 0:00:16.2]} 56...
Ke8 {[%clk 0:00:09.6]} 57. Rf7 {[%clk 0:00:13.4]} 57... Ra5 {[%clk 0:00:09.1]}
58. Rxf6 {[%clk 0:00:13]} 58... Rxb5 {[%clk 0:00:09]} 59. Be4 {[%clk 0:00:13.1]}
59... Ke7 {[%clk 0:00:08.7]} 60. Rg6 {[%clk 0:00:13.2]} 60... Ne6 {[%clk
0:00:08.9]} 61. Rh6 {[%clk 0:00:12.4]} 61... Nf4+ {[%clk 0:00:09]} 62. Kg1
{[%clk 0:00:11.5]} 62... Rb4 {[%clk 0:00:08.8]} 63. f3 {[%clk 0:00:11]} 63... a5
{[%clk 0:00:08.8]} 64. Rh7+ {[%clk 0:00:10.7]} 64... Kd6 {[%clk 0:00:09.2]} 65.
Ra7 {[%clk 0:00:09.3]} 65... a4 {[%clk 0:00:09.2]} 66. Kf2 {[%clk 0:00:09.2]}
66... Kc5 {[%clk 0:00:09.3]} 67. Ke3 {[%clk 0:00:09]} 67... Rb3+ {[%clk
0:00:09.4]} 68. Kd2 {[%clk 0:00:09.1]} 68... a3 {[%clk 0:00:09.6]} 69. Kc2
{[%clk 0:00:07.9]} 69... Re3 {[%clk 0:00:09]} 70. Kd2 {[%clk 0:00:08]} 70... Rb3
{[%clk 0:00:08.5]} 71. Kc2 {[%clk 0:00:07.9]} 71... Rb2+ {[%clk 0:00:08.4]} 72.
Kc3 {[%clk 0:00:07.9]} 72... Ne2+ {[%clk 0:00:08.7]} 73. Kd3 {[%clk 0:00:08.1]}
73... Nc1+ {[%clk 0:00:08.9]} 74. Kc3 {[%clk 0:00:07.6]} 74... Ne2+ {[%clk
0:00:09.3]} 75. Kd3 {[%clk 0:00:07.9]} 75... a2 {[%clk 0:00:09.9]} 76. Ra8
{[%clk 0:00:05.1]} 76... Nc1+ {[%clk 0:00:09.9]} 77. Kc3 {[%clk 0:00:04.8]}
77... Rf2 {[%clk 0:00:09]} 78. Ra5+ {[%clk 0:00:03.2]} 78... Kb6 {[%clk
0:00:09]} 79. Ra8 {[%clk 0:00:03]} 79... Ne2+ {[%clk 0:00:08.8]} 80. Kb2 {[%clk
0:00:01.5]} 80... Ng3+ {[%clk 0:00:07.6]} 0-1

[Event "*** Titled Tuesday Blitz"]
[Site "Chess.com"]
[Date "2021.03.30"]
[Round "8"]
[White "Titus369"]
[Black "kakorrhaphiophobie"]
[Result "1/2-1/2"]
[WhiteElo "2509"]
[BlackElo "2350"]
[TimeControl "180+1"]
[EndTime "11:32:23 PDT"]
[Termination "Game drawn by 50-move rule"]

1. e4 {[%clk 0:03:00.9]} 1... e6 {[%clk 0:03:00.3]} 2. d4 {[%clk 0:03:00.7]}
2... d5 {[%clk 0:03:01.2]} 3. Nd2 {[%clk 0:03:00.8]} 3... c5 {[%clk 0:03:00.4]}
4. Ngf3 {[%clk 0:02:59.8]} 4... cxd4 {[%clk 0:02:59]} 5. exd5 {[%clk 0:02:58.4]}
5... Qxd5 {[%clk 0:02:58]} 6. Bc4 {[%clk 0:02:56.1]} 6... Qd6 {[%clk 0:02:57.8]}
7. O-O {[%clk 0:02:56]} 7... Nf6 {[%clk 0:02:58]} 8. Nb3 {[%clk 0:02:56.7]} 8...
Nc6 {[%clk 0:02:56.7]} 9. Nbxd4 {[%clk 0:02:57]} 9... Nxd4 {[%clk 0:02:57.6]}
10. Nxd4 {[%clk 0:02:57]} 10... Be7 {[%clk 0:02:56.8]} 11. Nb5 {[%clk
0:02:43.8]} 11... Qc6 {[%clk 0:02:44]} 12. Qe2 {[%clk 0:02:38.4]} 12... O-O
{[%clk 0:02:43.3]} 13. Bf4 {[%clk 0:02:29.9]} 13... a6 {[%clk 0:02:24.6]} 14.
Nd4 {[%clk 0:02:21.4]} 14... Qe4 {[%clk 0:02:19.4]} 15. Be3 {[%clk 0:02:13.6]}
15... b5 {[%clk 0:02:15.5]} 16. Bd3 {[%clk 0:02:09.5]} 16... Qd5 {[%clk
0:02:12.5]} 17. Rad1 {[%clk 0:02:07.6]} 17... Bb7 {[%clk 0:02:11.9]} 18. Nf3
{[%clk 0:02:07.9]} 18... Qh5 {[%clk 0:02:10.8]} 19. h3 {[%clk 0:02:07.3]} 19...
Rfd8 {[%clk 0:02:06.9]} 20. Ng5 {[%clk 0:02:05.8]} 20... Qxe2 {[%clk 0:02:04.1]}
21. Bxe2 {[%clk 0:02:06.7]} 21... h6 {[%clk 0:02:03.6]} 22. Nf3 {[%clk
0:02:06.4]} 22... Rac8 {[%clk 0:02:01.9]} 23. c3 {[%clk 0:02:02.7]} 23... Bd5
{[%clk 0:01:59.4]} 24. a4 {[%clk 0:01:57.8]} 24... bxa4 {[%clk 0:01:54.5]} 25.
Bxa6 {[%clk 0:01:55.9]} 25... Rb8 {[%clk 0:01:53.5]} 26. Ra1 {[%clk 0:01:43.7]}
26... Rxb2 {[%clk 0:01:47.2]} 27. Rxa4 {[%clk 0:01:36.3]} 27... Bxf3 {[%clk
0:01:47.4]} 28. gxf3 {[%clk 0:01:35.9]} 28... Nd5 {[%clk 0:01:44.2]} 29. Bc1
{[%clk 0:01:31.3]} 29... Rb6 {[%clk 0:01:37.7]} 30. Bd2 {[%clk 0:01:19.4]} 30...
Ra8 {[%clk 0:01:36.6]} 31. Rfa1 {[%clk 0:01:18.2]} 31... Bf6 {[%clk 0:01:26.6]}
32. Bd3 {[%clk 0:01:12.1]} 32... Rxa4 {[%clk 0:01:26.1]} 33. Rxa4 {[%clk
0:01:13]} 33... g5 {[%clk 0:01:19.2]} 34. c4 {[%clk 0:01:11.2]} 34... Nf4 {[%clk
0:00:48.1]} 35. Be4 {[%clk 0:00:56.6]} 35... Nxh3+ {[%clk 0:00:39.6]} 36. Kg2
{[%clk 0:00:51.8]} 36... Nf4+ {[%clk 0:00:26.9]} 37. Bxf4 {[%clk 0:00:51.8]}
37... gxf4 {[%clk 0:00:27.8]} 38. Ra8+ {[%clk 0:00:51.1]} 38... Kg7 {[%clk
0:00:27.6]} 39. c5 {[%clk 0:00:48.2]} 39... Rb5 {[%clk 0:00:25.7]} 40. c6 {[%clk
0:00:46.3]} 40... Rc5 {[%clk 0:00:26]} 41. Ra7 {[%clk 0:00:45]} 41... Be5 {[%clk
0:00:25.6]} 42. Rb7 {[%clk 0:00:39.7]} 42... Bd6 {[%clk 0:00:20.6]} 43. Rd7
{[%clk 0:00:38.6]} 43... Be5 {[%clk 0:00:20.5]} 44. Kh3 {[%clk 0:00:36.4]} 44...
Kf6 {[%clk 0:00:20.7]} 45. Kg4 {[%clk 0:00:35.5]} 45... Rc1 {[%clk 0:00:20]} 46.
Kh3 {[%clk 0:00:33.4]} 46... Rh1+ {[%clk 0:00:17.6]} 47. Kg2 {[%clk 0:00:33.5]}
47... Rc1 {[%clk 0:00:18.5]} 48. Rd2 {[%clk 0:00:31.9]} 48... Bc7 {[%clk
0:00:16.6]} 49. Rb2 {[%clk 0:00:29.4]} 49... Ke7 {[%clk 0:00:16.1]} 50. Ra2
{[%clk 0:00:28.3]} 50... f5 {[%clk 0:00:16.1]} 51. Bc2 {[%clk 0:00:24.6]} 51...
Kd6 {[%clk 0:00:14.9]} 52. Ba4 {[%clk 0:00:25.2]} 52... Rc5 {[%clk 0:00:13.1]}
53. Rd2+ {[%clk 0:00:25.4]} 53... Rd5 {[%clk 0:00:13.7]} 54. Re2 {[%clk
0:00:25.6]} 54... e5 {[%clk 0:00:12.6]} 55. Re1 {[%clk 0:00:25.3]} 55... Rd4
{[%clk 0:00:12.4]} 56. Bc2 {[%clk 0:00:24.3]} 56... Rc4 {[%clk 0:00:10.8]} 57.
Bxf5 {[%clk 0:00:22.9]} 57... Rxc6 {[%clk 0:00:10.5]} 58. Rd1+ {[%clk
0:00:23.1]} 58... Kc5 {[%clk 0:00:10.1]} 59. Be4 {[%clk 0:00:22.9]} 59... Rd6
{[%clk 0:00:09]} 60. Rc1+ {[%clk 0:00:22.2]} 60... Kb6 {[%clk 0:00:09.6]} 61.
Rb1+ {[%clk 0:00:22.8]} 61... Ka5 {[%clk 0:00:09.9]} 62. Rb7 {[%clk 0:00:22.8]}
62... Bb6 {[%clk 0:00:09.2]} 63. Re7 {[%clk 0:00:23.1]} 63... Bd4 {[%clk
0:00:09.2]} 64. Bc2 {[%clk 0:00:20.8]} 64... Kb4 {[%clk 0:00:09.2]} 65. Rc7
{[%clk 0:00:20.1]} 65... Rd8 {[%clk 0:00:07.2]} 66. Be4 {[%clk 0:00:18.4]} 66...
Rg8+ {[%clk 0:00:07.4]} 67. Kf1 {[%clk 0:00:18.9]} 67... Rh8 {[%clk 0:00:06.9]}
68. Rb7+ {[%clk 0:00:19.3]} 68... Kc5 {[%clk 0:00:07]} 69. Rc7+ {[%clk
0:00:18.8]} 69... Kd6 {[%clk 0:00:07]} 70. Rc6+ {[%clk 0:00:19.7]} 70... Ke7
{[%clk 0:00:07.5]} 71. Rg6 {[%clk 0:00:20.3]} 71... h5 {[%clk 0:00:07.8]} 72.
Bf5 {[%clk 0:00:20.3]} 72... h4 {[%clk 0:00:08.1]} 73. Re6+ {[%clk 0:00:20.8]}
73... Kf7 {[%clk 0:00:08.3]} 74. Bh3 {[%clk 0:00:21.4]} 74... Rh7 {[%clk
0:00:07.9]} 75. Rc6 {[%clk 0:00:21.1]} 75... Rh8 {[%clk 0:00:07.9]} 76. Rc7+
{[%clk 0:00:21.3]} 76... Kf6 {[%clk 0:00:08]} 77. Ke2 {[%clk 0:00:21.1]} 77...
Rh6 {[%clk 0:00:07.6]} 78. Kd3 {[%clk 0:00:19.8]} 78... Rh8 {[%clk 0:00:06.7]}
79. Ke4 {[%clk 0:00:19.7]} 79... Bxf2 {[%clk 0:00:05.9]} 80. Rc6+ {[%clk
0:00:20]} 80... Ke7 {[%clk 0:00:06.2]} 81. Kxe5 {[%clk 0:00:20.2]} 81... Be3
{[%clk 0:00:06]} 82. Rc7+ {[%clk 0:00:19.9]} 82... Kf8 {[%clk 0:00:06.1]} 83.
Bf5 {[%clk 0:00:14.9]} 83... Rh6 {[%clk 0:00:06.1]} 84. Rc8+ {[%clk 0:00:12.9]}
84... Ke7 {[%clk 0:00:06]} 85. Rc7+ {[%clk 0:00:13.8]} 85... Kf8 {[%clk
0:00:06.6]} 86. Be6 {[%clk 0:00:13.4]} 86... Rh5+ {[%clk 0:00:06.3]} 87. Kf6
{[%clk 0:00:13.1]} 87... Rh6+ {[%clk 0:00:06.2]} 88. Kf5 {[%clk 0:00:13.5]}
88... Rh5+ {[%clk 0:00:06.6]} 89. Kg6 {[%clk 0:00:13.3]} 89... Ra5 {[%clk
0:00:06]} 90. Kf6 {[%clk 0:00:11]} 90... Bd4+ {[%clk 0:00:06.6]} 91. Kg6 {[%clk
0:00:11.2]} 91... Be3 {[%clk 0:00:07.5]} 92. Bg4 {[%clk 0:00:10.6]} 92... Ke8
{[%clk 0:00:07.2]} 93. Rh7 {[%clk 0:00:08.9]} 93... Ra6+ {[%clk 0:00:07.1]} 94.
Kf5 {[%clk 0:00:09]} 94... Ra5+ {[%clk 0:00:07.4]} 95. Ke4 {[%clk 0:00:09.2]}
95... Ra4+ {[%clk 0:00:07.1]} 96. Kd5 {[%clk 0:00:09.8]} 96... Ra5+ {[%clk
0:00:07.6]} 97. Kc4 {[%clk 0:00:10.1]} 97... Bf2 {[%clk 0:00:07]} 98. Kb4 {[%clk
0:00:09.9]} 98... Re5 {[%clk 0:00:06.9]} 99. Kc4 {[%clk 0:00:10.2]} 99... Bg3
{[%clk 0:00:07.4]} 100. Kd4 {[%clk 0:00:10.3]} 100... Re3 {[%clk 0:00:08.1]}
101. Kd5 {[%clk 0:00:10.1]} 101... Kf8 {[%clk 0:00:08.6]} 102. Kd6 {[%clk
0:00:10]} 102... Kg8 {[%clk 0:00:08.9]} 103. Rb7 {[%clk 0:00:07.3]} 103... Re2
{[%clk 0:00:08.3]} 104. Kd5 {[%clk 0:00:06.3]} 104... Re1 {[%clk 0:00:08.3]}
105. Kd4 {[%clk 0:00:06.3]} 105... Re3 {[%clk 0:00:08.9]} 106. Kd5 {[%clk
0:00:06.3]} 106... Re8 {[%clk 0:00:09.2]} 107. Be6+ {[%clk 0:00:06.5]} 107...
Kf8 {[%clk 0:00:08.9]} 108. Ke5 {[%clk 0:00:06.5]} 108... Re7 {[%clk 0:00:09]}
109. Rb8+ {[%clk 0:00:05.5]} 109... Kg7 {[%clk 0:00:09.6]} 110. Kf5 {[%clk
0:00:05.6]} 110... Ra7 {[%clk 0:00:09.1]} 111. Kg5 {[%clk 0:00:04.7]} 111...
Ra5+ {[%clk 0:00:07.6]} 112. Kg4 {[%clk 0:00:04.9]} 112... Re5 {[%clk
0:00:06.3]} 113. Bf5 {[%clk 0:00:04.8]} 113... Kf6 {[%clk 0:00:06.8]} 114. Rb6+
{[%clk 0:00:04.7]} 114... Ke7 {[%clk 0:00:06.6]} 115. Be4 {[%clk 0:00:05]}
115... Rc5 {[%clk 0:00:05.8]} 116. Rh6 {[%clk 0:00:04.8]} 116... Kd7 {[%clk
0:00:05.9]} 117. Rh7+ {[%clk 0:00:05.1]} 117... Kd6 {[%clk 0:00:05.9]} 118. Bf5
{[%clk 0:00:05.2]} 118... Ke5 {[%clk 0:00:05.7]} 119. Re7+ {[%clk 0:00:04.8]}
119... Kd4 {[%clk 0:00:06.1]} 120. Re4+ {[%clk 0:00:04.8]} 120... Kc3 {[%clk
0:00:06.6]} 121. Re2 {[%clk 0:00:04.4]} 121... Ra5 {[%clk 0:00:05.8]} 122. Rc2+
{[%clk 0:00:04.7]} 122... Kb3 {[%clk 0:00:05.3]} 123. Re2 {[%clk 0:00:05.1]}
123... Ra3 {[%clk 0:00:06.2]} 124. Be6+ {[%clk 0:00:03.7]} 124... Kb4 {[%clk
0:00:06.1]} 125. Re4+ {[%clk 0:00:04.6]} 125... Kc3 {[%clk 0:00:06.3]} 126. Bd5
{[%clk 0:00:04.7]} 126... Kb2 {[%clk 0:00:07.2]} 127. Rb4+ {[%clk 0:00:04.7]}
127... Kc3 {[%clk 0:00:07.6]} 128. Rc4+ {[%clk 0:00:05.2]} 128... Kd3 {[%clk
0:00:08.2]} 129. Rc8 {[%clk 0:00:06.1]} 129... Ke3 {[%clk 0:00:08.7]} 130. Be4
{[%clk 0:00:07]} 130... Kf2 {[%clk 0:00:09.2]} 131. Rc2+ {[%clk 0:00:07.1]}
1/2-1/2